fUSD/lending_fUSD_20250221
["ID","MTS","AMOUNT","RATE_DAILY","PERIOD"]
[353973464,1740171043864,-999.93,0.00011123,2]
[353973466,1740171043874,-500.0,0.00011123,2]
[353973468,1740171043883,-529.44,0.00011123,2]
[353973470,1740171043893,-1000.0,0.00011123,2]
[353973472,1740171043902,-514.03,0.00011123,2]
[353973473,1740171043912,-500.0,0.00011123,2]
[353973474,1740171043922,-872.75,0.00011123,2]
[353973475,1740171043933,-500.0,0.00011123,2]
[353973476,1740171043943,-925.13,0.00011123,2]
[353973477,1740171043953,-664.18,0.00011123,2]
[353973478,1740171043963,-1061.9,0.00011123,2]
[353973479,1740171043974,-500.0,0.00011123,2]
[353973480,1740171043984,-500.0,0.00011123,2]
[353973481,1740171043994,-1366.7,0.00011123,2]
[353973482,1740171044005,-643.85,0.00011123,2]
[353973483,1740171044021,-1157.67,0.00011123,2]
[353973484,1740171044031,-500.0,0.00011123,2]
[353973486,1740171044041,-728.91,0.00011123,2]
[353973488,1740171044052,-913.3,0.00011123,2]
[353973490,1740171044063,-500.0,0.00011123,2]
[353973492,1740171044073,-500.0,0.00011123,2]
[353973494,1740171044083,-586.15,0.00011123,2]
[353973496,1740171044094,-500.0,0.00011123,2]
[353973498,1740171044105,-500.0,0.00011123,2]
[353973500,1740171044114,-997.55,0.00011123,2]
[353973502,1740171044124,-791.3,0.00011123,2]
[353973504,1740171044134,-500.0,0.00011123,2]
[353973507,1740171044144,-632.04,0.00011123,2]
[353973509,1740171044154,-500.0,0.00011123,2]
[353973511,1740171044164,-693.28,0.00011123,2]
[353973513,1740171044174,-500.0,0.00011123,2]
[353973515,1740171044184,-500.0,0.00011123,2]
[353973517,1740171044194,-818.59,0.00011123,2]
[353973519,1740171044205,-500.0,0.00011123,2]
[353973521,1740171044215,-500.0,0.00011123,2]
[353973523,1740171044228,-703.51,0.00011123,2]
[353973525,1740171044239,-592.44,0.00011123,2]
[353973527,1740171044251,-500.0,0.00011123,2]
[353973529,1740171044261,-500.0,0.00011123,2]
[353973531,1740171044271,-500.0,0.00011123,2]
[353973533,1740171044281,-500.0,0.00011123,2]
[353973535,1740171044291,-571.44,0.00011123,2]
[353973537,1740171044301,-500.0,0.00011123,2]
[353973540,1740171044311,-500.0,0.00011123,2]
[353973542,1740171044320,-500.0,0.00011123,2]
[353973543,1740171044330,-838.19,0.00011123,2]
[353973545,1740171044347,-720.06,0.00011123,2]
[353973548,1740171044363,-500.0,0.00011123,2]
[353973549,1740171044373,-500.0,0.00011123,2]
[353973552,1740171044383,-931.04,0.00011123,2]
[353973554,1740171044393,-500.0,0.00011123,2]
[353973556,1740171044404,-500.0,0.00011123,2]
[353973588,1740171044693,-500.0,0.00011123,2]
[353973590,1740171044704,-500.0,0.00011123,2]
[353973592,1740171044715,-1272.71,0.00011123,2]
[353973594,1740171044726,-1189.40530246,0.0001114,2]
[353973596,1740171044735,-150.0,0.00011166,2]
[353973598,1740171044745,-150.0,0.00011166,2]
[353973600,1740171044755,-632.53,0.00011203,2]
[353973602,1740171044767,-838.98,0.00011203,2]
[353973604,1740171044777,-500.0,0.00011203,2]
[353973606,1740171044787,-500.0,0.00011203,2]
[353973608,1740171044796,-649.17,0.00011203,2]
[353973610,1740171044806,-609.92,0.00011203,2]
[353973612,1740171044815,-500.0,0.00011203,2]
[353973614,1740171044824,-734.31,0.00011203,2]
[353973616,1740171044833,-903.74,0.00011203,2]
[353973618,1740171044842,-500.0,0.00011203,2]
[353973620,1740171044851,-500.0,0.00011203,2]
[353973622,1740171044861,-774.49,0.00011203,2]
[353973624,1740171044870,-557.01,0.00011203,2]
[353973626,1740171044880,-601.4,0.00011203,2]
[353973628,1740171044889,-500.0,0.00011203,2]
[353973630,1740171044899,-584.44,0.00011203,2]
[353973632,1740171044909,-739.21,0.00011203,2]
[353973634,1740171044918,-1290.21,0.00011203,2]
[353973636,1740171044927,-500.0,0.00011203,2]
[353973638,1740171044937,-500.0,0.00011203,2]
[353973641,1740171044946,-911.81,0.00011203,2]
[353973642,1740171044955,-500.0,0.00011203,2]
[353973644,1740171044965,-500.0,0.00011203,2]
[353973647,1740171044975,-721.51,0.00011203,2]
[353973649,1740171044985,-500.0,0.00011203,2]
[353973651,1740171044995,-1006.19,0.00011203,2]
[353973653,1740171045011,-567.1,0.00011203,2]
[353973655,1740171045021,-1021.87,0.00011203,2]
[353973657,1740171045031,-641.22,0.00011203,2]
[353973659,1740171045041,-500.0,0.00011203,2]
[353973661,1740171045053,-528.77,0.00011203,2]
[353973663,1740171045063,-500.0,0.00011203,2]
[353973665,1740171045072,-500.0,0.00011204,2]
[353973667,1740171045081,-500.0,0.00011204,2]
[353973669,1740171045091,-500.0,0.00011204,2]
[353973671,1740171045100,-515.4,0.00011204,2]
[353973673,1740171045109,-545.11,0.00011204,2]
[353973675,1740171045119,-500.0,0.00011204,2]
[353973677,1740171045128,-500.0,0.00011204,2]
[353973679,1740171045138,-500.0,0.00011204,2]
[353973681,1740171045147,-277.78853553,0.00011204,2]
[353973683,1740171045157,-500.0,0.00011204,2]
[353973685,1740171045166,-500.0,0.00011204,2]
[353973687,1740171045176,-500.0,0.00011204,2]
[353973689,1740171045184,-500.0,0.00011204,2]
[353973691,1740171045194,-920.86,0.00011204,2]
[353973693,1740171045204,-500.0,0.00011204,2]
[353973695,1740171045213,-1213.59,0.00011204,2]
[353973697,1740171045223,-500.0,0.00011204,2]
[353973699,1740171045232,-1530.25,0.00011204,2]
[353973701,1740171045242,-1165.42,0.00011204,2]
[353973703,1740171045251,-1606.86,0.00011204,2]
[353973705,1740171045261,-500.0,0.00011204,2]
[353973707,1740171045271,-500.0,0.00011204,2]
[353973709,1740171045280,-1202.17,0.00011204,2]
[353973711,1740171045290,-980.68,0.00011204,2]
[353973713,1740171045300,-388.485905,0.00011204,2]
[353973715,1740171045310,-787.96,0.00011204,2]
[353973717,1740171045320,-715.35,0.00011204,2]
[353973719,1740171045329,-4732.39,0.00011204,2]
[353973721,1740171045339,-825.04,0.00011204,2]
[353973723,1740171045348,-500.0,0.00011204,2]
[353973725,1740171045357,-781.86,0.00011204,2]
[353973727,1740171045367,-456.75589,0.00011204,2]
[353973729,1740171045376,-1296.25,0.00011204,2]
[353973731,1740171045385,-500.0,0.00011204,2]
[353973733,1740171045395,-968.39,0.00011204,2]
[353973735,1740171045405,-500.0,0.00011204,2]
[353973737,1740171045414,-1024.15,0.00011204,2]
[353973739,1740171045424,-500.0,0.00011204,2]
[353973741,1740171045433,-641.54,0.00011204,2]
[353973743,1740171045443,-983.5,0.00011204,2]
[353973745,1740171045456,-922.66,0.00011204,2]
[353973747,1740171045465,-521.8,0.00011204,2]
[353973749,1740171045476,-1051.72,0.00011204,2]
[353973751,1740171045486,-500.0,0.00011204,2]
[353973753,1740171045496,-960.42,0.00011204,2]
[353973755,1740171045506,-909.2,0.00011204,2]
[353973757,1740171045515,-699.01,0.00011204,2]
[353973759,1740171045525,-1134.55,0.00011204,2]
[353973761,1740171045534,-2042.37,0.00011204,2]
[353973763,1740171045544,-770.62,0.00011204,2]
[353973765,1740171045553,-500.0,0.00011204,2]
[353973767,1740171045563,-500.0,0.00011204,2]
[353973769,1740171045572,-833.6,0.00011204,2]
[353973771,1740171045582,-500.0,0.00011204,2]
[353973773,1740171045593,-691.53,0.00011204,2]
[353973775,1740171045602,-1037.34,0.00011204,2]
[353973777,1740171045612,-500.0,0.00011204,2]
[353973779,1740171045621,-500.0,0.00011204,2]
[353973781,1740171045631,-500.0,0.00011204,2]
[353973783,1740171045641,-698.57,0.00011204,2]
[353973785,1740171045651,-1368.34,0.00011204,2]
[353973787,1740171045660,-500.0,0.00011204,2]
[353973789,1740171045670,-697.57,0.00011204,2]
[353973791,1740171045679,-500.0,0.00011204,2]
[353973793,1740171045688,-1063.71,0.00011204,2]
[353973795,1740171045698,-500.0,0.00011204,2]
[353973797,1740171045707,-303.2199837,0.00011204,2]
[353973800,1740171045724,-907.5400163,0.00011204,2]
[353973802,1740171045734,-916.99,0.00011204,2]
[353973804,1740171045743,-737.32,0.00011204,2]
[353973806,1740171045753,-500.0,0.00011204,2]
[353973808,1740171045763,-1114.97,0.00011204,2]
[353973810,1740171045773,-500.0,0.00011204,2]
[353973812,1740171045782,-723.1799837,0.00011204,2]
[353973829,1740171045842,-118.2400163,0.00011204,2]
[353973831,1740171045851,-500.0,0.00011204,2]
[353973833,1740171045861,-119.70289536,0.00011204,2]
[353973839,1740171045912,-1965.48710464,0.00011204,2]
[353973841,1740171045921,-500.0,0.00011204,2]
[353973843,1740171045931,-1025.17,0.00011204,2]
[353973845,1740171045941,-500.0,0.00011204,2]
[353973847,1740171045950,-1253.06,0.00011204,2]
[353973849,1740171045960,-500.0,0.00011204,2]
[353973851,1740171045970,-725.46,0.00011204,2]
[353973853,1740171045979,-828.59,0.00011204,2]
[353973855,1740171045989,-1071.25,0.00011204,2]
[353973857,1740171046000,-663.69,0.00011204,2]
[353973859,1740171046011,-1377.64,0.00011204,2]
[353973861,1740171046020,-346.25159772,0.00011204,2]
[353973863,1740171046030,-500.0,0.00011204,2]
[353973865,1740171046039,-500.0,0.00011204,2]
[353973867,1740171046049,-540.68,0.00011204,2]
[353973869,1740171046058,-500.0,0.00011204,2]
[353973871,1740171046067,-500.0,0.00011204,2]
[353973873,1740171046076,-500.0,0.00011205,2]
[353973875,1740171046086,-500.0,0.00011205,2]
[353973877,1740171046096,-948.42,0.00011205,2]
[353973879,1740171046105,-500.0,0.00011205,2]
[353973881,1740171046114,-500.0,0.00011205,2]
[353973883,1740171046123,-500.0,0.00011205,2]
[353973885,1740171046132,-548.39,0.00011205,2]
[353973887,1740171046141,-500.0,0.00011205,2]
[353973889,1740171046150,-500.0,0.00011205,2]
[353973891,1740171046160,-500.0,0.00011205,2]
[353973893,1740171046169,-500.0,0.00011205,2]
[353973895,1740171046179,-500.0,0.00011205,2]
[353973897,1740171046188,-500.0,0.00011205,2]
[353973899,1740171046197,-500.0,0.00011205,2]
[353973901,1740171046207,-500.0,0.00011205,2]
[353973903,1740171046217,-500.0,0.00011205,2]
[353973905,1740171046226,-500.0,0.00011205,2]
[353973907,1740171046235,-500.0,0.00011205,2]
[353973909,1740171046245,-500.0,0.00011205,2]
[353973911,1740171046253,-500.0,0.00011205,2]
[353973913,1740171046263,-500.0,0.00011205,2]
[353973915,1740171046272,-500.0,0.00011205,2]
[353973917,1740171046281,-500.0,0.00011205,2]
[353973919,1740171046290,-509.14,0.00011205,2]
[353973921,1740171046301,-500.0,0.00011205,2]
[353973923,1740171046310,-500.0,0.00011205,2]
[353973925,1740171046319,-532.03,0.00011205,2]
[353973927,1740171046328,-500.0,0.00011205,2]
[353973929,1740171046337,-500.0,0.00011205,2]
[353973931,1740171046346,-895.54,0.00011205,2]
[353973933,1740171046355,-500.0,0.00011205,2]
[353973935,1740171046365,-500.0,0.00011205,2]
[353973936,1740171046374,-500.0,0.00011205,2]
[353973937,1740171046383,-723.86,0.00011205,2]
[353973938,1740171046393,-500.0,0.00011205,2]
[353973939,1740171046402,-500.0,0.00011205,2]
[353973940,1740171046412,-569.43,0.00011205,2]
[353973941,1740171046422,-721.9,0.00011205,2]
[353973943,1740171046432,-604.3,0.00011205,2]
[353973945,1740171046441,-548.65,0.00011205,2]
[353973947,1740171046450,-500.0,0.00011205,2]
[353973950,1740171046460,-796.7,0.00011205,2]
[353973953,1740171046469,-500.0,0.00011205,2]
[353973956,1740171046479,-500.0,0.00011205,2]
[353973958,1740171046489,-570.06,0.00011205,2]
[353973959,1740171046498,-548.12,0.00011205,2]
[353973960,1740171046508,-547.69,0.00011205,2]
[353973961,1740171046517,-500.0,0.00011205,2]
[353973962,1740171046527,-682.11,0.00011205,2]
[353973963,1740171046536,-500.0,0.00011205,2]
[353973964,1740171046546,-530.17,0.00011205,2]
[353973965,1740171046555,-500.0,0.00011205,2]
[353973966,1740171046564,-595.9,0.00011205,2]
[353973967,1740171046574,-500.0,0.00011205,2]
[353973968,1740171046583,-500.0,0.00011205,2]
[353973969,1740171046592,-500.0,0.00011205,2]
[353973970,1740171046602,-608.63,0.00011205,2]
[353973971,1740171046610,-500.0,0.00011205,2]
[353973972,1740171046619,-500.0,0.00011205,2]
[353973973,1740171046628,-500.0,0.00011205,2]
[353973974,1740171046637,-500.0,0.00011205,2]
[353973975,1740171046646,-528.72,0.00011205,2]
[353973977,1740171046656,-517.55,0.00011205,2]
[353973979,1740171046666,-500.0,0.00011205,2]
[353973980,1740171046675,-500.0,0.00011205,2]
[353973981,1740171046684,-500.0,0.00011205,2]
[353973982,1740171046693,-500.0,0.00011205,2]
[353973983,1740171046702,-500.0,0.00011205,2]
[353973984,1740171046711,-500.0,0.00011205,2]
[353973985,1740171046720,-500.0,0.00011205,2]
[353973986,1740171046730,-596.32,0.00011205,2]
[353973987,1740171046739,-500.0,0.00011205,2]
[353973988,1740171046748,-608.08,0.00011205,2]
[353973989,1740171046758,-500.0,0.00011205,2]
[353973990,1740171046767,-500.0,0.00011205,2]
[353973991,1740171046776,-500.0,0.00011205,2]
[353973992,1740171046785,-500.0,0.00011205,2]
[353973993,1740171046794,-500.0,0.00011205,2]
[353973994,1740171046803,-725.21,0.00011205,2]
[353973995,1740171046812,-500.0,0.00011205,2]
[353973996,1740171046822,-736.61,0.00011205,2]
[353973997,1740171046831,-500.0,0.00011205,2]
[353973998,1740171046840,-500.0,0.00011205,2]
[353973999,1740171046849,-500.0,0.00011205,2]
[353974000,1740171046859,-500.0,0.00011205,2]
[353974001,1740171046868,-500.0,0.00011205,2]
[353974002,1740171046877,-500.0,0.00011205,2]
[353974003,1740171046886,-500.0,0.00011205,2]
[353974004,1740171046895,-500.0,0.00011205,2]
[353974005,1740171046905,-595.1,0.00011205,2]
[353974006,1740171046914,-500.0,0.00011205,2]
[353974007,1740171046923,-500.0,0.00011205,2]
[353974008,1740171046932,-597.25,0.00011205,2]
[353974009,1740171046941,-500.0,0.00011205,2]
[353974010,1740171046951,-500.0,0.00011205,2]
[353974011,1740171046962,-789.82,0.00011205,2]
[353974012,1740171046971,-500.0,0.00011205,2]
[353974013,1740171046981,-820.97,0.00011205,2]
[353974014,1740171046990,-500.0,0.00011205,2]
[353974015,1740171046999,-500.0,0.00011205,2]
[353974016,1740171047010,-500.0,0.00011205,2]
[353974017,1740171047020,-638.4,0.00011205,2]
[353974018,1740171047029,-500.0,0.00011205,2]
[353974019,1740171047041,-500.0,0.00011205,2]
[353974020,1740171047051,-602.07,0.00011205,2]
[353974021,1740171047060,-534.75,0.00011205,2]
[353974022,1740171047069,-591.74,0.00011205,2]
[353974023,1740171047078,-500.0,0.00011205,2]
[353974024,1740171047090,-594.45,0.00011205,2]
[353974025,1740171047099,-556.78,0.00011205,2]
[353974026,1740171047109,-543.99,0.00011205,2]
[353974027,1740171047118,-500.0,0.00011205,2]
[353974028,1740171047127,-500.0,0.00011205,2]
[353974029,1740171047136,-500.0,0.00011205,2]
[353974030,1740171047145,-616.02099403,0.00011205,2]
[353974031,1740171047154,-561.34,0.00011205,2]
[353974032,1740171047163,-656.67,0.00011205,2]
[353974033,1740171047173,-500.0,0.00011205,2]
[353974034,1740171047183,-500.0,0.00011205,2]
[353974035,1740171047192,-622.72260968,0.00011205,2]
[353974036,1740171047201,-510.74,0.00011205,2]
[353974037,1740171047210,-500.0,0.00011205,2]
[353974038,1740171047220,-570.21,0.00011205,2]
[353974039,1740171047230,-500.0,0.00011205,2]
[353974040,1740171047239,-288.08170279,0.00011205,2]
[353974041,1740171047248,-500.0,0.00011205,2]
[353974042,1740171047257,-737.42,0.00011205,2]
[353974043,1740171047266,-500.0,0.00011205,2]
[353974044,1740171047275,-576.65,0.00011205,2]
[353974045,1740171047284,-500.0,0.00011205,2]
[353974046,1740171047293,-717.99,0.00011205,2]
[353974047,1740171047303,-500.0,0.00011205,2]
[353974048,1740171047312,-758.02,0.00011205,2]
[353974049,1740171047321,-500.0,0.00011205,2]
[353974050,1740171047330,-500.0,0.00011205,2]
[353974051,1740171047339,-500.0,0.00011205,2]
[353974052,1740171047349,-500.0,0.00011205,2]
[353974053,1740171047358,-516.42,0.00011205,2]
[353974054,1740171047367,-500.0,0.00011205,2]
[353974055,1740171047377,-500.0,0.00011205,2]
[353974056,1740171047387,-500.0,0.00011205,2]
[353974057,1740171047396,-628.36,0.00011205,2]
[353974058,1740171047406,-500.0,0.00011205,2]
[353974059,1740171047415,-500.0,0.00011205,2]
[353974060,1740171047425,-500.0,0.00011205,2]
[353974061,1740171047435,-602.18,0.00011205,2]
[353974062,1740171047444,-500.0,0.00011205,2]
[353974063,1740171047454,-500.0,0.00011205,2]
[353974064,1740171047463,-637.41,0.00011205,2]
[353974065,1740171047474,-549.57,0.00011205,2]
[353974066,1740171047484,-594.93,0.00011205,2]
[353974067,1740171047494,-500.0,0.00011205,2]
[353974068,1740171047503,-510.35,0.00011205,2]
[353974069,1740171047513,-500.0,0.00011205,2]
[353974070,1740171047524,-500.0,0.00011205,2]
[353974071,1740171047537,-828.44,0.00011205,2]
[353974072,1740171047549,-500.0,0.00011205,2]
[353974073,1740171047564,-500.0,0.00011205,2]
[353974074,1740171047575,-507.4195748,0.00011205,2]
[353974075,1740171047586,-999.93,0.00011205,2]
[353974076,1740171047598,-500.0,0.00011205,2]
[353974077,1740171047609,-529.44,0.00011205,2]
[353974078,1740171047621,-1000.0,0.00011205,2]
[353974079,1740171047632,-514.03,0.00011205,2]
[353974080,1740171047644,-500.0,0.00011205,2]
[353974081,1740171047656,-872.75,0.00011205,2]
[353974082,1740171047667,-500.0,0.00011205,2]
[353974083,1740171047678,-925.13,0.00011205,2]
[353974084,1740171047689,-664.18,0.00011205,2]
[353974085,1740171047700,-1061.9,0.00011205,2]
[353974086,1740171047709,-500.0,0.00011205,2]
[353974087,1740171047720,-500.0,0.00011205,2]
[353974088,1740171047732,-1366.7,0.00011205,2]
[353974089,1740171047743,-643.85,0.00011205,2]
[353974090,1740171047755,-1157.67,0.00011205,2]
[353974091,1740171047768,-500.0,0.00011205,2]
[353974092,1740171047779,-728.91,0.00011205,2]
[353974093,1740171047791,-913.3,0.00011205,2]
[353974094,1740171047802,-500.0,0.00011205,2]
[353974095,1740171047813,-500.0,0.00011205,2]
[353974096,1740171047824,-586.15,0.00011205,2]
[353974097,1740171047836,-500.0,0.00011205,2]
[353974098,1740171047847,-500.0,0.00011205,2]
[353974099,1740171047857,-997.55,0.00011205,2]
[353974100,1740171047869,-791.3,0.00011205,2]
[353974101,1740171047880,-631.9,0.00011205,2]
[353974102,1740171047892,-632.04,0.00011205,2]
[353974103,1740171047904,-500.0,0.00011205,2]
[353974104,1740171047916,-693.28,0.00011205,2]
[353974105,1740171047930,-500.0,0.00011205,2]
[353974106,1740171047940,-500.0,0.00011205,2]
[353974107,1740171047951,-818.59,0.00011205,2]
[353974108,1740171047963,-500.0,0.00011205,2]
[353974109,1740171047975,-500.0,0.00011205,2]
[353974110,1740171047987,-703.51,0.00011205,2]
[353974111,1740171047999,-592.44,0.00011205,2]
[353974112,1740171048012,-500.0,0.00011205,2]
[353974113,1740171048023,-500.0,0.00011205,2]
[353974114,1740171048034,-500.0,0.00011205,2]
[353974115,1740171048048,-352.93339414,0.00011205,2]
[353974116,1740171048074,-147.06660586,0.00011205,2]
[353974117,1740171048089,-273.64509414,0.00011205,2]
[353974118,1740171048501,-478.91844,0.00011039,2]
[353974119,1740171048563,-21.08156,0.00011039,2]
[353974120,1740171048574,-500.0,0.00011039,2]
[353974121,1740171048586,-500.0,0.00011121,2]
[353974122,1740171048597,-500.0,0.00011121,2]
[353974123,1740171048608,-500.0,0.00011204,2]
[353974124,1740171048620,-297.79490586,0.00011205,2]
[353974125,1740171048631,-500.0,0.00011205,2]
[353974126,1740171048642,-500.0,0.00011205,2]
[353974127,1740171048653,-500.0,0.00011205,2]
[353974128,1740171048663,-838.19,0.00011205,2]
[353974129,1740171048674,-720.06,0.00011205,2]
[353974130,1740171048686,-500.0,0.00011205,2]
[353974131,1740171048697,-500.0,0.00011205,2]
[353974132,1740171048708,-931.04,0.00011205,2]
[353974133,1740171048719,-331.02501507,0.00011205,2]
[353974134,1740171048733,-168.97498493,0.00011205,2]
[353974135,1740171048744,-500.0,0.00011205,2]
[353974136,1740171048756,-500.0,0.00011205,2]
[353974137,1740171048767,-500.0,0.00011205,2]
[353974138,1740171048778,-1272.71,0.00011205,2]
[353974139,1740171048789,-3373.66046257,0.00011213,2]
[353974140,1740171048803,-147.96295202,0.00011213,2]
[353974141,1740171048814,-295.28504769,0.00011285,2]
[353974142,1740171048827,-337.24495231,0.00011285,2]
[353974143,1740171048838,-838.98,0.00011285,2]
[353974144,1740171048849,-500.0,0.00011285,2]
[353974145,1740171048860,-500.0,0.00011285,2]
[353974146,1740171048871,-649.17,0.00011285,2]
[353974147,1740171048882,-609.92,0.00011285,2]
[353974148,1740171048894,-500.0,0.00011285,2]
[353974149,1740171048904,-734.31,0.00011285,2]
[353974150,1740171048915,-903.74,0.00011285,2]
[353974151,1740171048926,-500.0,0.00011285,2]
[353974152,1740171048937,-500.0,0.00011285,2]
[353974153,1740171048948,-774.49,0.00011285,2]
[353974154,1740171048959,-557.01,0.00011285,2]
[353974155,1740171048969,-601.4,0.00011285,2]
[353974156,1740171048981,-500.0,0.00011285,2]
[353974157,1740171048992,-584.44,0.00011285,2]
[353974158,1740171049004,-739.21,0.00011285,2]
[353974159,1740171049019,-1290.21,0.00011285,2]
[353974160,1740171049029,-500.0,0.00011285,2]
[353974161,1740171049040,-500.0,0.00011285,2]
[353974162,1740171049052,-911.81,0.00011285,2]
[353974163,1740171049063,-500.0,0.00011285,2]
[353974164,1740171049074,-500.0,0.00011285,2]
[353974165,1740171049085,-721.51,0.00011285,2]
[353974166,1740171049097,-500.0,0.00011285,2]
[353974167,1740171049108,-1006.19,0.00011285,2]
[353974168,1740171049119,-567.1,0.00011285,2]
[353974169,1740171049129,-1021.87,0.00011285,2]
[353974170,1740171049141,-641.22,0.00011285,2]
[353974171,1740171049152,-500.0,0.00011285,2]
[353974172,1740171049162,-500.0,0.00011286,2]
[353974173,1740171049173,-500.0,0.00011286,2]
[353974174,1740171049185,-500.0,0.00011286,2]
[353974175,1740171049196,-515.4,0.00011286,2]
[353974176,1740171049208,-545.11,0.00011286,2]
[353974177,1740171049219,-500.0,0.00011286,2]
[353974178,1740171049230,-500.0,0.00011286,2]
[353974179,1740171049241,-500.0,0.00011286,2]
[353974180,1740171049252,-500.0,0.00011286,2]
[353974181,1740171049263,-500.0,0.00011286,2]
[353974182,1740171049273,-444.25965549,0.00011286,2]
[353974183,1740171049291,-55.74034451,0.00011286,2]
[353974184,1740171049302,-334.36048957,0.00011286,2]
[353974185,1740171049405,-165.63951043,0.00011286,2]
[353974186,1740171049415,-125.73013296,0.00011286,2]
[353974187,1740171049427,-374.26986704,0.00011286,2]
[353974188,1740171049438,-1213.59,0.00011286,2]
[353974189,1740171049448,-500.0,0.00011286,2]
[353974190,1740171049459,-1530.25,0.00011286,2]
[353974191,1740171049470,-1165.42,0.00011286,2]
[353974192,1740171049482,-500.0,0.00011286,2]
[353974193,1740171049492,-472.35599613,0.00011286,2]
[353974194,1740171049505,-27.64400387,0.00011286,2]
[353974195,1740171049515,-1202.17,0.00011286,2]
[353974196,1740171049525,-980.68,0.00011286,2]
[353974197,1740171049535,-388.485905,0.00011286,2]
[353974198,1740171049544,-787.96,0.00011286,2]
[353974199,1740171049555,-715.35,0.00011286,2]
[353974200,1740171049565,-4732.39,0.00011286,2]
[353974201,1740171049575,-825.04,0.00011286,2]
[353974202,1740171049585,-500.0,0.00011286,2]
[353974203,1740171049595,-219.13611906,0.00011286,2]
[353974204,1740171049617,-500.0,0.00011038,2]
[353974205,1740171049627,-190.42277323,0.00011286,2]
[353974206,1740171049640,-372.30110771,0.00011286,2]
[353974207,1740171049650,-456.75589,0.00011286,2]
[353974208,1740171049662,-500.0,0.00011286,2]
[353974209,1740171049672,-465.49888122,0.00011286,2]
[353974210,1740171049686,-315.6,0.00011286,2]
[353974211,1740171049699,-187.29111878,0.00011286,2]
[353974212,1740171049710,-500.0,0.00011286,2]
[353974213,1740171049720,-1024.15,0.00011286,2]
[353974214,1740171049730,-500.0,0.00011286,2]
[353974215,1740171049741,-641.54,0.00011286,2]
[353974216,1740171049751,-983.5,0.00011286,2]
[353974217,1740171049761,-922.66,0.00011286,2]
[353974218,1740171049772,-521.8,0.00011286,2]
[353974219,1740171049782,-1051.72,0.00011286,2]
[353974220,1740171049793,-500.0,0.00011286,2]
[353974221,1740171049803,-960.42,0.00011286,2]
[353974222,1740171049813,-909.2,0.00011286,2]
[353974223,1740171049823,-699.01,0.00011286,2]
[353974224,1740171049834,-1134.55,0.00011286,2]
[353974225,1740171049844,-2042.37,0.00011286,2]
[353974226,1740171049855,-770.62,0.00011286,2]
[353974227,1740171049865,-500.0,0.00011286,2]
[353974228,1740171049875,-500.0,0.00011286,2]
[353974229,1740171049885,-833.6,0.00011286,2]
[353974230,1740171049895,-500.0,0.00011286,2]
[353974231,1740171049905,-691.53,0.00011286,2]